[Event "Djerba Festival Blitz 2025"]
[Site "Djerba"]
[Date "2025.02.21"]
[Round "9.34"]
[White "Guinet, Andy"]
[Black "Charfeddine, Khaled"]
[Result "0-1"]
[Annotator "NA"]
[ECO "B10"]
[WhiteElo "1665"]
[BlackElo "1908"]
[PlyCount "39"]
[EventDate "2025.02.15"]
[EventType "swiss"]
[EventCountry "TUN"]
[SourceTitle "playchess.com"]
[Source "ChessBase"]
[SourceQuality "1"]
[TimeControl "180+3"]

1. e4 {[%emt 0:00:04]} c6 {[%emt 0:00:03]} 2. Nf3 {[%emt 0:00:02]} d5 {[%emt 0:00:04]} 3. e5 {[%emt 0:00:02]} c5 {[%emt 0:00:04]} 4. Be2 {[%emt 0:00:08]} Nc6 {[%emt 0:00:03]} 5. O-O {[%emt 0:00:03]} Bg4 {[%emt 0:00:02]} 6. Bb5 {[%emt 0:00:28]} e6 {[%emt 0:00:09]} 7. h3 {[%emt 0:00:02]} Bh5 {[%emt 0:00:06]} 8. d3 {[%emt 0:00:17]} Nge7 {[%emt 0:00:03]} 9. Bf4 {[%emt 0:00:06]} a6 {[%emt 0:00:02]} 10. Bxc6+ {[%emt 0:00:03]} Nxc6 {[%emt 0:00:03]} 11. Nbd2 {[%emt 0:00:05]} Be7 {[%emt 0:00:02]} 12. c4 {[%emt 0:00:07]} O-O {[%emt 0:00:22]} 13. b3 {[%emt 0:00:17]} Qd7 {[%emt 0:00:15]} 14. Re1 {[%emt 0:00:07]} Rad8 {[%emt 0:00:02]} 15. Qc2 {[%emt 0:00:03]} Bg6 {[%emt 0:00:05]} 16. Qc3 {[%emt 0:00:55]} d4 {[%emt 0:00:14]} 17. Qc1 {[%emt 0:00:08]} Bxd3 {[%emt 0:00:06]} 18. Ne4 {[%emt 0:00:33]} Bxe4 {[%emt 0:00:04]} 19. Rxe4 {[%emt 0:00:01]} Nb4 {[%emt 0:00:02]} 20. a3 {[%emt 0:00:32]} 0-1

[Event "Djerba Festival Blitz 2025"]
[Site "Djerba"]
[Date "2025.02.21"]
[Round "9.35"]
[White "Chaouech, Oussama"]
[Black "Chaudesaygues, Hugo"]
[Result "1-0"]
[Annotator "NA"]
[ECO "D35"]
[WhiteElo "1651"]
[BlackElo "1624"]
[PlyCount "56"]
[EventDate "2025.02.15"]
[EventType "swiss"]
[EventCountry "TUN"]
[SourceTitle "playchess.com"]
[Source "ChessBase"]
[SourceQuality "1"]
[TimeControl "180+3"]

1. d4 {[%emt 0:00:03]} d5 {[%emt 0:00:02]} 2. c4 {[%emt 0:00:02]} c6 {[%emt 0:00:05]} 3. Nc3 {[%emt 0:00:05]} e6 {[%emt 0:00:02]} 4. Bf4 {[%emt 0:00:06]} Bd6 {[%emt 0:00:04]} 5. Bxd6 {[%emt 0:00:09]} Qxd6 {[%emt 0:00:03]} 6. e3 {[%emt 0:00:05]} Nf6 {[%emt 0:00:06]} 7. Nf3 {[%emt 0:00:02]} Ne4 {[%emt 0:00:02]} 8. cxd5 {[%emt 0:00:17]} Nxc3 {[%emt 0:00:12]} 9. bxc3 {[%emt 0:00:06]} exd5 {[%emt 0:00:04]} 10. Qb3 {[%emt 0:00:13]} b5 {[%emt 0:00:12]} 11. a4 {[%emt 0:00:09]} bxa4 {[%emt 0:00:35]} 12. Rxa4 {[%emt 0:00:26]} O-O {[%emt 0:00:04]} 13. Ne5 {[%emt 0:00:08]} Nd7 {[%emt 0:00:13]} 14. Nxd7 {[%emt 0:00:31]} Bxd7 {[%emt 0:00:08]} 15. Qa2 {[%emt 0:00:09]} Rfb8 {[%emt 0:00:33]} 16. Bd3 {[%emt 0:00:06]} Rb7 {[%emt 0:00:17]} 17. O-O {[%emt 0:00:03]} c5 {[%emt 0:00:03]} 18. Ra6 {[%emt 0:00:10]} Qc7 {[%emt 0:00:14]} 19. Qxd5 {[%emt 0:00:11]} cxd4 {[%emt 0:00:14]} 20. exd4 {[%emt 0:00:20]} Be6 {[%emt 0:00:02]} 21. Qf3 {[%emt 0:00:13]} Rab8 {[%emt 0:00:06]} 22. d5 {[%emt 0:00:35]} Bc8 {[%emt 0:00:08]} 23. c4 {[%emt 0:00:00]} Rb3 {[%emt 0:00:03]} 24. Rc6 {[%emt 0:00:00]} Qe7 {[%emt 0:00:15]} 25. Rxc8+ {[%emt 0:00:00]} Rxc8 {[%emt 0:00:06]} 26. Bxh7+ {[%emt 0:00:02]} Kxh7 {[%emt 0:00:03]} 27. Qxb3 {[%emt 0:00:02]} f6 {[%emt 0:00:05]} 28. Qd3+ {[%emt 0:00:01]} Kg8 {[%emt 0:00:15]} 1-0

[Event "Djerba Festival Blitz 2025"]
[Site "Djerba"]
[Date "2025.02.21"]
[Round "9.40"]
[White "Feurprier, Matteo"]
[Black "Baba, Ayoub"]
[Result "1-0"]
[Annotator "NA"]
[ECO "B45"]
[WhiteElo "1537"]
[BlackElo "1469"]
[PlyCount "53"]
[EventDate "2025.02.15"]
[EventType "swiss"]
[EventCountry "TUN"]
[SourceTitle "playchess.com"]
[Source "ChessBase"]
[SourceQuality "1"]
[TimeControl "180+3"]

1. e4 {[%emt 0:00:03]} c5 {[%emt 0:00:03]} 2. Nf3 {[%emt 0:00:02]} Nc6 {[%emt 0:00:01]} 3. d4 {[%emt 0:00:02]} cxd4 {[%emt 0:00:03]} 4. Nxd4 {[%emt 0:00:02]} Nf6 {[%emt 0:00:06]} 5. Nc3 {[%emt 0:00:02]} e6 {[%emt 0:00:02]} 6. Bg5 {[%emt 0:00:21]} Be7 {[%emt 0:00:05]} 7. Be2 {[%emt 0:00:04]} d5 {[%emt 0:00:10]} 8. exd5 {[%emt 0:00:15]} Nxd5 {[%emt 0:00:05]} 9. Bxe7 {[%emt 0:00:05]} Qxe7 {[%emt 0:00:05]} 10. Nxd5 {[%emt 0:00:11]} exd5 {[%emt 0:00:02]} 11. O-O {[%emt 0:00:13]} O-O {[%emt 0:00:04]} 12. Re1 {[%emt 0:00:02]} Qg5 {[%emt 0:00:12]} 13. Nf3 {[%emt 0:00:11]} Qf6 {[%emt 0:00:12]} 14. Qxd5 {[%emt 0:00:14]} Qxb2 {[%emt 0:00:04]} 15. Qb3 {[%emt 0:00:04]} Qf6 {[%emt 0:00:08]} 16. Rad1 {[%emt 0:00:15]} b6 {[%emt 0:00:17]} 17. Bb5 {[%emt 0:00:06]} Bb7 {[%emt 0:00:05]} 18. Re2 {[%emt 0:00:17]} h6 {[%emt 0:00:03]} 19. Rde1 {[%emt 0:00:02]} Na5 {[%emt 0:00:33]} 20. Qe3 {[%emt 0:00:29]} Rac8 {[%emt 0:00:11]} 21. Ne5 {[%emt 0:00:11]} Qg5 {[%emt 0:00:36]} 22. Qxg5 {[%emt 0:00:16]} hxg5 {[%emt 0:00:02]} 23. Nf3 {[%emt 0:00:03]} Bxf3 {[%emt 0:00:06]} 24. gxf3 {[%emt 0:00:02]} Rc3 {[%emt 0:00:11]} 25. Re8 {[%emt 0:00:14]} Rxc2 {[%emt 0:00:08]} 26. Rxf8+ {[%emt 0:00:02]} Kxf8 {[%emt 0:00:03]} 27. Re8# {[%emt 0:00:02]} 1-0

[Event "Djerba Festival Blitz 2025"]
[Site "Djerba"]
[Date "2025.02.21"]
[Round "9.41"]
[White "Mathanchandaran, Dev"]
[Black "Hinard, Jeremy"]
[Result "1-0"]
[Annotator "NA"]
[ECO "B10"]
[WhiteElo "1650"]
[BlackElo "1609"]
[PlyCount "64"]
[EventDate "2025.02.15"]
[EventType "swiss"]
[EventCountry "TUN"]
[SourceTitle "playchess.com"]
[Source "ChessBase"]
[SourceQuality "1"]
[TimeControl "180+3"]

1. e4 {[%emt 0:00:03]} c6 {[%emt 0:00:02]} 2. Nf3 {[%emt 0:00:07]} d5 {[%emt 0:00:03]} 3. exd5 {[%emt 0:00:02]} cxd5 {[%emt 0:00:02]} 4. Ne5 {[%emt 0:00:02]} Nf6 {[%emt 0:00:30]} 5. d4 {[%emt 0:00:08]} Nc6 {[%emt 0:00:05]} 6. Bb5 {[%emt 0:00:09]} Qb6 {[%emt 0:00:16]} 7. Bxc6+ {[%emt 0:00:12]} bxc6 {[%emt 0:00:05]} 8. Nc3 {[%emt 0:00:24]} Ba6 {[%emt 0:00:12]} 9. Qf3 {[%emt 0:00:18]} Qxd4 {[%emt 0:00:16]} 10. Nxc6 {[%emt 0:00:14]} Qc5 {[%emt 0:00:35]} 11. Ne5 {[%emt 0:00:10]} e6 {[%emt 0:00:10]} 12. Be3 {[%emt 0:00:13]} Qc7 {[%emt 0:00:02]} 13. Nd3 {[%emt 0:00:09]} Bxd3 {[%emt 0:00:09]} 14. cxd3 {[%emt 0:00:04]} Bb4 {[%emt 0:00:04]} 15. Rc1 {[%emt 0:00:07]} O-O {[%emt 0:00:19]} 16. O-O {[%emt 0:00:04]} Bxc3 {[%emt 0:00:14]} 17. Rxc3 {[%emt 0:00:07]} Qd7 {[%emt 0:00:17]} 18. Bd4 {[%emt 0:00:15]} Rfc8 {[%emt 0:00:07]} 19. Bxf6 {[%emt 0:00:05]} gxf6 {[%emt 0:00:13]} 20. Qxf6 {[%emt 0:00:03]} Rxc3 {[%emt 0:00:05]} 21. Qxc3 {[%emt 0:00:03]} Rc8 {[%emt 0:00:03]} 22. Qd2 {[%emt 0:00:10]} Qa4 {[%emt 0:00:04]} 23. a3 {[%emt 0:00:12]} Rc2 {[%emt 0:00:04]} 24. Qg5+ {[%emt 0:00:03]} Kh8 {[%emt 0:00:02]} 25. Rb1 {[%emt 0:00:08]} Re2 {[%emt 0:00:10]} 26. g3 {[%emt 0:00:12]} Qc2 {[%emt 0:00:02]} 27. Rf1 {[%emt 0:00:04]} Qxb2 {[%emt 0:00:07]} 28. Qd8+ {[%emt 0:00:03]} Kg7 {[%emt 0:00:02]} 29. Qd6 {[%emt 0:00:06]} Qd2 {[%emt 0:00:05]} 30. Qe7 {[%emt 0:00:06]} Qxd3 {[%emt 0:00:04]} 31. Qxa7 {[%emt 0:00:02]} Qf3 {[%emt 0:00:04]} 32. Qb7 {[%emt 0:00:14]} Qg4 {[%emt 0:00:06]} 1-0

[Event "Djerba Festival Blitz 2025"]
[Site "Djerba"]
[Date "2025.02.21"]
[Round "9.42"]
[White "Kammoun, Adam"]
[Black "Soudani, Hassan"]
[Result "0-1"]
[Annotator "NA"]
[ECO "E35"]
[WhiteElo "1571"]
[BlackElo "1598"]
[PlyCount "112"]
[EventDate "2025.02.15"]
[EventType "swiss"]
[EventCountry "TUN"]
[SourceTitle "playchess.com"]
[Source "ChessBase"]
[SourceQuality "1"]
[TimeControl "180+3"]

1. d4 {[%emt 0:00:02]} d5 {[%emt 0:00:03]} 2. c4 {[%emt 0:00:02]} Nf6 {[%emt 0:00:03]} 3. Nc3 {[%emt 0:00:02]} e6 {[%emt 0:00:02]} 4. cxd5 {[%emt 0:00:02]} exd5 {[%emt 0:00:03]} 5. Bg5 {[%emt 0:00:02]} Bb4 {[%emt 0:00:03]} 6. Qc2 {[%emt 0:00:01]} O-O {[%emt 0:00:03]} 7. e3 {[%emt 0:00:02]} Nbd7 {[%emt 0:00:05]} 8. Nf3 {[%emt 0:00:02]} Qe7 {[%emt 0:00:04]} 9. Be2 {[%emt 0:00:04]} a5 {[%emt 0:00:04]} 10. a3 {[%emt 0:03:14]} Bd6 {[%emt 0:00:04]} 11. Nb5 {[%emt 0:00:00]} b6 {[%emt 0:00:16]} 12. Nxc7 {[%emt 0:00:00]} Ra7 {[%emt 0:00:08]} 13. Nxd5 {[%emt 0:00:00]} Qe6 {[%emt 0:00:06]} 14. Nxf6+ {[%emt 0:00:00]} Nxf6 {[%emt 0:00:04]} 15. Bc4 {[%emt 0:00:00]} Qe4 {[%emt 0:00:08]} 16. Qxe4 {[%emt 0:00:00]} Nxe4 {[%emt 0:00:03]} 17. Bh4 {[%emt 0:00:00]} Bg4 {[%emt 0:00:07]} 18. Nd2 {[%emt 0:00:00]} Nxd2 {[%emt 0:00:04]} 19. Kxd2 {[%emt 0:00:00]} Rc7 {[%emt 0:00:04]} 20. Rac1 {[%emt 0:00:00]} h6 {[%emt 0:00:06]} 21. f3 {[%emt 0:00:00]} Bh5 {[%emt 0:00:04]} 22. Bg3 {[%emt 0:00:00]} Rd7 {[%emt 0:00:13]} 23. Bxd6 {[%emt 0:00:00]} Rxd6 {[%emt 0:00:02]} 24. Bd3 {[%emt 0:00:00]} f5 {[%emt 0:00:11]} 25. Rc2 {[%emt 0:00:00]} f4 {[%emt 0:00:03]} 26. Re1 {[%emt 0:00:00]} Re6 {[%emt 0:00:16]} 27. Bc4 {[%emt 0:00:00]} Bf7 {[%emt 0:00:05]} 28. Bxe6 {[%emt 0:00:00]} Bxe6 {[%emt 0:00:03]} 29. exf4 {[%emt 0:00:00]} Bf5 {[%emt 0:01:53]} 30. Rc6 {[%emt 0:00:00]} Rb8 {[%emt 0:00:00]} 31. Re5 {[%emt 0:00:00]} Bd7 {[%emt 0:00:00]} 32. Rd6 {[%emt 0:00:00]} Ba4 {[%emt 0:00:00]} 33. Ree6 {[%emt 0:00:00]} Rc8 {[%emt 0:00:00]} 34. Rxb6 {[%emt 0:00:03]} Rc2+ {[%emt 0:00:00]} 35. Kd3 {[%emt 0:00:01]} Rxg2 {[%emt 0:00:00]} 36. Rg6 {[%emt 0:00:05]} Bc2+ {[%emt 0:00:00]} 37. Kc4 {[%emt 0:00:07]} Bxg6 {[%emt 0:00:00]} 38. Rb5 {[%emt 0:00:04]} Rc2+ {[%emt 0:00:00]} 39. Kd5 {[%emt 0:00:04]} Bh5 {[%emt 0:00:00]} 40. Rc5 {[%emt 0:00:04]} Rxh2 {[%emt 0:00:00]} 41. Rxa5 {[%emt 0:00:04]} Bxf3+ {[%emt 0:00:00]} 42. Kc4 {[%emt 0:00:03]} Rc2+ {[%emt 0:00:00]} 43. Kd3 {[%emt 0:00:02]} Rxb2 {[%emt 0:00:00]} 44. d5 {[%emt 0:00:03]} Rb3+ {[%emt 0:00:00]} 45. Kd4 {[%emt 0:00:05]} Rb1 {[%emt 0:00:00]} 46. d6 {[%emt 0:00:03]} Kh7 {[%emt 0:00:00]} 47. Ke3 {[%emt 0:00:05]} Rb3+ {[%emt 0:00:00]} 48. Kf2 {[%emt 0:00:04]} Bg4 {[%emt 0:00:00]} 49. Rd5 {[%emt 0:00:04]} Rxa3 {[%emt 0:00:00]} 50. d7 {[%emt 0:00:03]} Rf3+ {[%emt 0:00:00]} 51. Kg2 {[%emt 0:00:04]} Bxd7 {[%emt 0:00:04]} 52. Kxf3 {[%emt 0:00:05]} Bc6 {[%emt 0:00:19]} 53. Ke3 Bxd5 54. Kd4 {[%emt 0:00:59]} Kg6 {[%emt 0:00:08]} 55. Ke5 {[%emt 0:00:00]} Bg2 {[%emt 0:00:03]} 56. f5+ {[%emt 0:00:00]} Kg5 {[%emt 0:00:01]} 0-1

[Event "Djerba Festival Blitz 2025"]
[Site "Djerba"]
[Date "2025.02.21"]
[Round "9.43"]
[White "Chartier, Romain"]
[Black "Khider, Amilia"]
[Result "1/2-1/2"]
[Annotator "NA"]
[ECO "D02"]
[WhiteElo "1581"]
[BlackElo "1524"]
[PlyCount "89"]
[EventDate "2025.02.15"]
[EventType "swiss"]
[EventCountry "TUN"]
[SourceTitle "playchess.com"]
[Source "ChessBase"]
[SourceQuality "1"]
[TimeControl "180+3"]

1. d4 {[%emt 0:03:06]} d5 2. Bf4 {[%emt 0:00:03]} Nf6 3. e3 {[%emt 0:00:03]} e6 4. Bd3 {[%emt 0:00:03]} c5 5. c3 {[%emt 0:00:03]} Nc6 {[%emt 0:03:18]} 6. Nf3 {[%emt 0:00:03]} Bd6 {[%emt 0:00:03]} 7. Bxd6 {[%emt 0:00:03]} Qxd6 {[%emt 0:00:03]} 8. O-O {[%emt 0:00:03]} O-O {[%emt 0:00:03]} 9. Nbd2 b6 {[%emt 0:00:03]} 10. Re1 {[%emt 0:00:06]} Bb7 {[%emt 0:00:03]} 11. e4 {[%emt 0:00:03]} Qc7 {[%emt 0:00:03]} 12. e5 {[%emt 0:00:03]} Nd7 {[%emt 0:00:03]} 13. Nf1 {[%emt 0:00:03]} Rfe8 {[%emt 0:00:03]} 14. Ng3 {[%emt 0:00:03]} f6 {[%emt 0:00:03]} 15. exf6 {[%emt 0:00:03]} Nxf6 {[%emt 0:00:03]} 16. Ne5 {[%emt 0:00:03]} cxd4 {[%emt 0:00:03]} 17. cxd4 {[%emt 0:00:03]} Nxd4 {[%emt 0:00:03]} 18. Bxh7+ {[%emt 0:00:03]} Kxh7 {[%emt 0:00:03]} 19. Qxd4 {[%emt 0:00:03]} Kg8 {[%emt 0:00:03]} 20. Rac1 {[%emt 0:00:03]} Qe7 {[%emt 0:00:03]} 21. Ng6 {[%emt 0:00:03]} Qf7 {[%emt 0:00:03]} 22. Ne5 {[%emt 0:00:03]} Qe7 {[%emt 0:00:03]} 23. Rc3 {[%emt 0:00:03]} Rac8 {[%emt 0:00:03]} 24. Rec1 {[%emt 0:00:03]} Qd6 {[%emt 0:00:03]} 25. Rxc8 {[%emt 0:00:03]} Rxc8 {[%emt 0:00:03]} 26. Rxc8+ {[%emt 0:00:03]} Bxc8 27. f4 {[%emt 0:00:03]} Qc5 {[%emt 0:00:06]} 28. Qxc5 {[%emt 0:00:03]} bxc5 {[%emt 0:00:03]} 29. Kf2 {[%emt 0:00:03]} Kf8 {[%emt 0:00:03]} 30. Ke3 {[%emt 0:00:03]} a6 {[%emt 0:00:03]} 31. Kd3 {[%emt 0:00:03]} Ke7 {[%emt 0:00:03]} 32. Kc3 {[%emt 0:00:03]} Kd6 {[%emt 0:00:03]} 33. b4 {[%emt 0:00:03]} cxb4+ {[%emt 0:00:03]} 34. Kxb4 {[%emt 0:00:03]} Bb7 {[%emt 0:00:03]} 35. a4 {[%emt 0:00:03]} g5 {[%emt 0:00:03]} 36. Nf7+ {[%emt 0:00:03]} Kc6 {[%emt 0:00:03]} 37. Nxg5 {[%emt 0:00:03]} Kd6 {[%emt 0:00:03]} 38. Nf3 {[%emt 0:00:03]} Ng4 {[%emt 0:00:03]} 39. Ne2 {[%emt 0:00:03]} Ne3 {[%emt 0:00:03]} 40. g3 {[%emt 0:00:03]} Nc2+ {[%emt 0:00:03]} 41. Kc3 {[%emt 0:00:03]} Ne3 {[%emt 0:00:03]} 42. Ned4 {[%emt 0:00:03]} Nd1+ {[%emt 0:00:03]} 43. Kb4 Ne3 {[%emt 0:00:03]} 44. Kc3 Nd1+ 45. Kb4 1/2-1/2

[Event "Djerba Festival Blitz 2025"]
[Site "Djerba"]
[Date "2025.02.21"]
[Round "9.45"]
[White "Doucet, Paul-Loup"]
[Black "Fengal, Zineddine"]
[Result "1-0"]
[Annotator "NA"]
[ECO "C01"]
[WhiteElo "1503"]
[BlackElo "1439"]
[PlyCount "73"]
[EventDate "2025.02.15"]
[EventType "swiss"]
[EventCountry "TUN"]
[SourceTitle "playchess.com"]
[Source "ChessBase"]
[SourceQuality "1"]
[TimeControl "180+3"]

1. e4 {[%emt 0:03:06]} e6 {[%emt 0:03:06]} 2. d4 d5 {[%emt 0:00:03]} 3. exd5 {[%emt 0:00:06]} exd5 {[%emt 0:00:03]} 4. Bd3 Bd6 {[%emt 0:00:03]} 5. Ne2 Nc6 {[%emt 0:00:03]} 6. c3 {[%emt 0:00:09]} Nf6 {[%emt 0:00:03]} 7. Bf4 {[%emt 0:00:03]} Be6 {[%emt 0:00:03]} 8. Nd2 {[%emt 0:00:03]} O-O {[%emt 0:00:03]} 9. Bxd6 {[%emt 0:00:03]} Qxd6 {[%emt 0:00:03]} 10. Ng3 {[%emt 0:00:03]} Rfe8 {[%emt 0:00:03]} 11. O-O {[%emt 0:00:03]} Bg4 {[%emt 0:00:03]} 12. Qc2 {[%emt 0:00:03]} h6 {[%emt 0:00:03]} 13. h3 {[%emt 0:00:03]} Be6 {[%emt 0:00:03]} 14. Nf5 {[%emt 0:00:03]} Qd7 {[%emt 0:00:03]} 15. Nf3 {[%emt 0:00:03]} Ne7 {[%emt 0:00:03]} 16. Nxe7+ {[%emt 0:00:03]} Rxe7 {[%emt 0:00:03]} 17. Ne5 {[%emt 0:00:03]} Qd6 {[%emt 0:00:03]} 18. Qb3 {[%emt 0:00:03]} b6 {[%emt 0:00:03]} 19. Rae1 {[%emt 0:00:03]} c5 {[%emt 0:00:03]} 20. dxc5 {[%emt 0:00:03]} bxc5 {[%emt 0:00:03]} 21. Qc2 {[%emt 0:00:03]} Bxh3 {[%emt 0:00:03]} 22. Nxf7 {[%emt 0:00:03]} Kxf7 {[%emt 0:00:03]} 23. gxh3 {[%emt 0:00:03]} Kg8 {[%emt 0:00:03]} 24. Rxe7 {[%emt 0:00:03]} Qxe7 {[%emt 0:00:03]} 25. Qd2 Re8 {[%emt 0:00:03]} 26. Bb5 {[%emt 0:00:06]} Rb8 {[%emt 0:00:03]} 27. Bc6 {[%emt 0:00:03]} Ne4 {[%emt 0:00:03]} 28. Qxd5+ {[%emt 0:00:03]} Kh8 {[%emt 0:00:03]} 29. Qxe4 Qg5+ {[%emt 0:00:03]} 30. Qg2 {[%emt 0:00:06]} Rxb2 {[%emt 0:00:03]} 31. Qxg5 {[%emt 0:00:03]} hxg5 {[%emt 0:00:03]} 32. Bd5 {[%emt 0:00:03]} Kh7 {[%emt 0:00:03]} 33. Re1 {[%emt 0:00:03]} Kg6 {[%emt 0:00:03]} 34. Kg2 {[%emt 0:00:03]} Kf5 {[%emt 0:00:03]} 35. a4 {[%emt 0:00:03]} Rc2 {[%emt 0:00:03]} 36. Be4+ {[%emt 0:00:03]} Kf6 {[%emt 0:00:03]} 37. Bxc2 1-0